bitfinex/quotes_BTCUSD_20250831
["timestamp","ask_amount","ask_price","bid_price","bid_amount"]
[1756654745700,0.82017907,108780.0,108770.0,0.00893]
[1756654745905,0.95625519,108780.0,108770.0,0.00893]
[1756654746104,0.97349805,108780.0,108770.0,0.00893]
[1756654752365,0.96487611,108780.0,108770.0,0.00893]
[1756654753217,0.96483611,108780.0,108770.0,0.01097]
[1756654753406,0.94759325,108780.0,108770.0,0.19484423]
[1756654755102,0.43011733,108780.0,108770.0,0.01097]
[1756654755308,0.94759325,108780.0,108770.0,0.01097]
[1756654755552,0.15328,108780.0,108770.0,0.19484423]
[1756654755725,0.52404162,108790.0,108780.0,0.18385732]
[1756654755898,1.31363972,108790.0,108780.0,0.18882732]
[1756654756100,1.31363972,108790.0,108780.0,0.38882732]
[1756654756285,1.31363972,108790.0,108780.0,0.18882732]
[1756654756500,0.36606192,108790.0,108780.0,0.18882732]
[1756654756702,0.15352,108790.0,108780.0,0.18882732]
[1756654758034,0.15352,108790.0,108780.0,0.18982732]
[1756654758362,0.15352,108790.0,108780.0,0.19182732]
[1756654758747,0.0002,108790.0,108780.0,0.19182732]
[1756654760424,0.0002,108790.0,108780.0,0.90930324]
[1756654760570,0.0002,108790.0,108780.0,0.82322207]
[1756654761612,0.0002,108790.0,108780.0,0.89390207]
[1756654762676,0.0002,108790.0,108780.0,0.93605262]
[1756654763330,0.0002,108790.0,108780.0,1.08961262]
[1756654763822,0.0002,108790.0,108780.0,0.5721367]
[1756654765256,0.0002,108790.0,108780.0,0.4185767]
[1756654765480,0.0002,108790.0,108780.0,0.5721767]
[1756654766341,0.0002,108790.0,108780.0,0.5721367]
[1756654766740,0.0002,108790.0,108780.0,0.5997677]
[1756654767880,0.0002,108790.0,108780.0,0.55761715]
[1756654772040,0.0002,108790.0,108780.0,1.07509307]
[1756654772279,0.0002,108790.0,108780.0,0.92153307]
[1756654772482,0.0002,108790.0,108780.0,1.07505307]
[1756654772918,0.0002,108790.0,108780.0,1.11741897]
[1756654773847,0.0002,108790.0,108780.0,0.96389897]
[1756654774027,0.0002,108790.0,108780.0,1.11741897]
[1756654774496,0.0002,108790.0,108780.0,1.11746186]
[1756654775213,0.0002,108790.0,108780.0,0.96394186]
[1756654775424,0.0002,108790.0,108780.0,1.11742186]
[1756654777876,0.0002,108790.0,108780.0,1.45742186]
[1756654778477,0.0002,108790.0,108780.0,1.65742186]
[1756654778921,0.0002,108790.0,108780.0,1.45742186]
[1756654779337,0.0002,108790.0,108780.0,1.30394186]
[1756654779566,0.0002,108790.0,108780.0,1.65738186]
[1756654779771,0.0002,108790.0,108780.0,1.72488186]
[1756654781511,0.82293886,108830.0,108810.0,0.18380663]
[1756654781715,0.83153633,108830.0,108820.0,0.18378974]
[1756654781923,0.48912095,108830.0,108820.0,0.18378974]
[1756654782107,0.51795225,108830.0,108820.0,0.18378974]
[1756654783342,0.71032356,108830.0,108820.0,0.18378974]
[1756654783743,0.71332356,108830.0,108820.0,0.18378974]
[1756654784079,0.7047251,108830.0,108820.0,0.18378974]
[1756654784239,0.7017251,108830.0,108820.0,0.18686974]
[1756654784393,0.71032597,108830.0,108820.0,0.38686974]
[1756654784593,0.71032597,108830.0,108820.0,0.18686974]
[1756654784831,0.71032474,108830.0,108820.0,0.18686974]
[1756654785043,0.71032474,108830.0,108820.0,0.38686974]
[1756654785413,0.71032474,108830.0,108820.0,0.18786974]
[1756654786024,0.71032474,108830.0,108820.0,0.001]
[1756654786229,0.7275262,108830.0,108820.0,0.001]
[1756654787573,0.7275356,108830.0,108820.0,0.001]
[1756654788432,0.7275383,108830.0,108820.0,0.001]
[1756654798200,0.72754025,108830.0,108820.0,0.001]
[1756654798400,0.21006665,108830.0,108820.0,0.001]
[1756654798575,0.72754257,108830.0,108820.0,0.001]
[1756654799167,0.72754526,108830.0,108820.0,0.001]
[1756654805193,0.72476923,108830.0,108820.0,0.001]
[1756654806670,0.53257758,108830.0,108820.0,0.001]
[1756654806817,0.72706893,108830.0,108820.0,0.001]
[1756654807601,0.7271,108830.0,108820.0,0.001]
[1756654807778,0.72711553,108830.0,108820.0,0.00404]
[1756654809850,0.72711553,108830.0,108820.0,0.18994974]
[1756654810060,0.88035553,108830.0,108820.0,0.18994974]
[1756654810855,0.88035553,108830.0,108820.0,0.00616]
[1756654812198,0.88035553,108830.0,108820.0,0.0047686]
[1756654813532,0.18378974,108820.0,108810.0,0.027626]
[1756654813757,0.70126566,108820.0,108810.0,0.21143263]
[1756654813963,0.70126566,108820.0,108810.0,0.21355263]
[1756654814165,0.70126566,108820.0,108810.0,0.21659263]
[1756654815623,0.70126566,108820.0,108810.0,0.21859263]
[1756654815837,0.70126566,108820.0,108810.0,0.21959263]
[1756654817411,0.70126566,108820.0,108810.0,0.26193857]
[1756654818256,0.18378974,108820.0,108810.0,0.26193857]
[1756654818475,0.70126566,108820.0,108810.0,0.26193857]
[1756654819106,0.70122277,108820.0,108810.0,0.26193857]
[1756654819645,0.33713285,108830.0,108810.0,0.26193857]
[1756654819846,0.51977656,108820.0,108810.0,0.25889857]
[1756654820043,0.33713285,108830.0,108810.0,0.25889857]
[1756654820304,0.51977656,108820.0,108810.0,0.25889857]
[1756654820498,0.51747592,108820.0,108810.0,0.26205857]
[1756654820646,0.51747592,108820.0,108810.0,0.26105857]
[1756654820845,0.70126566,108820.0,108810.0,0.26105857]
[1756654822183,0.18378974,108820.0,108810.0,0.26105857]
[1756654822379,0.9592076,108820.0,108810.0,0.26105857]
[1756654823162,0.9592076,108820.0,108810.0,0.26205857]
[1756654826951,0.18378974,108820.0,108810.0,0.26205857]
[1756654827153,0.33713285,108830.0,108810.0,0.26205857]
[1756654827359,0.38770893,108820.0,108810.0,0.25889857]
[1756654827894,0.57148178,108830.0,108810.0,0.26205857]
[1756654828091,0.38770893,108820.0,108810.0,0.45889857]
[1756654828300,0.38770893,108820.0,108810.0,0.25889857]
[1756654828857,0.38770893,108820.0,108810.0,0.25905857]
[1756654829060,0.54114893,108830.0,108820.0,0.18378974]
[1756654829217,0.59736359,108830.0,108820.0,0.34253974]
[1756654829424,0.41359074,108830.0,108820.0,0.34253974]
[1756654829636,0.41359057,108830.0,108820.0,0.34253974]
[1756654830035,0.41359024,108830.0,108820.0,0.36573218]
[1756654830240,0.39633614,108830.0,108820.0,0.34253974]
[1756654830434,0.00862721,108830.0,108820.0,0.34253974]
[1756654830663,0.39633614,108830.0,108820.0,0.34253974]
[1756654831104,0.38770893,108830.0,108820.0,0.37016374]
[1756654831313,0.02664614,108840.0,108830.0,0.38377285]
[1756654831468,0.02621766,108840.0,108830.0,0.18908285]
[1756654831658,0.41392659,108840.0,108830.0,0.18908285]
[1756654832578,0.41392158,108840.0,108830.0,0.18908285]
[1756654833134,0.02821265,108840.0,108830.0,0.18908285]
[1756654833352,0.00234278,108840.0,108830.0,0.18908285]
[1756654833584,0.39005171,108840.0,108830.0,0.18908285]
[1756654834209,0.39005171,108840.0,108830.0,0.21670485]
[1756654834393,0.00234278,108840.0,108830.0,0.21670485]
[1756654835809,0.00234278,108840.0,108830.0,0.37026485]
[1756654836099,0.00134278,108840.0,108830.0,0.37026485]
[1756654836305,0.00034278,108840.0,108830.0,0.37026485]
[1756654836501,0.00034278,108840.0,108830.0,0.21970485]
[1756654836711,0.00034278,108840.0,108830.0,0.37326485]
[1756654837083,0.00034278,108840.0,108830.0,0.37526485]
[1756654837667,0.00034278,108840.0,108830.0,0.22170485]
[1756654837866,0.00034278,108840.0,108830.0,0.37526485]
[1756654838895,0.57180768,108840.0,108830.0,0.22170485]
[1756654839106,0.18409875,108840.0,108830.0,0.37526485]
[1756654839359,0.95951661,108840.0,108830.0,0.22170485]
[1756654839565,0.98714432,108840.0,108830.0,0.005]
[1756654839800,0.99575344,108840.0,108830.0,0.005]
[1756654840005,0.95951661,108840.0,108830.0,0.005]
[1756654841149,0.18409875,108840.0,108830.0,0.01031]
[1756654841348,0.95951661,108840.0,108830.0,0.01031]
[1756654841549,1.11307661,108840.0,108830.0,0.01031]
[1756654841884,1.11307661,108840.0,108830.0,0.19408285]
[1756654842097,0.85441007,108840.0,108830.0,0.19408285]
[1756654842495,0.70085007,108840.0,108830.0,0.19408285]
[1756654842698,0.33765875,108840.0,108830.0,0.19408285]
[1756654842901,0.85441007,108840.0,108830.0,0.19408285]
[1756654843492,0.70085007,108840.0,108830.0,0.19408285]
[1756654844461,0.70085007,108840.0,108830.0,0.19193285]
[1756654844883,0.70085007,108840.0,108830.0,0.19408285]
[1756654845525,0.85469007,108840.0,108830.0,0.19408285]
[1756654846952,0.70085007,108840.0,108830.0,0.19408285]
[1756654847324,0.6709341,108840.0,108830.0,0.19408285]
[1756654847718,0.6709341,108840.0,108830.0,0.22170485]
[1756654848657,0.85469007,108840.0,108830.0,0.22170485]
[1756654848859,0.6708941,108840.0,108830.0,0.22170485]
[1756654851661,0.00034278,108840.0,108830.0,0.22170485]
[1756654852676,0.00034278,108840.0,108830.0,0.83143618]
[1756654855353,0.00034278,108840.0,108830.0,0.98519618]
[1756654855703,0.00034278,108840.0,108830.0,0.98515618]
[1756654857185,0.00034278,108840.0,108830.0,0.46840486]
[1756654857394,0.00034278,108840.0,108830.0,0.98515618]
[1756654857686,0.00034278,108840.0,108830.0,1.05579618]
[1756654858103,0.00034278,108840.0,108830.0,1.076735]
[1756654859876,0.00034278,108840.0,108830.0,1.416735]
[1756654861351,0.00034278,108840.0,108830.0,0.89998368]
[1756654861524,0.00034278,108840.0,108830.0,1.416735]
[1756654861718,0.00034278,108840.0,108830.0,1.417095]
[1756654866876,0.00034278,108840.0,108830.0,0.74626368]
[1756654867079,0.00034278,108840.0,108830.0,0.90038368]
[1756654868479,0.00034278,108840.0,108830.0,0.74624368]
[1756654868687,0.00034278,108840.0,108830.0,0.90036368]
[1756654869114,0.00034278,108840.0,108830.0,0.90032368]
[1756654872922,0.00034278,108840.0,108830.0,0.90028368]
[1756654882068,0.00034278,108840.0,108830.0,1.28769505]
[1756654883860,0.00034278,108840.0,108830.0,1.13365505]
[1756654884063,0.00034278,108840.0,108830.0,0.90008368]
[1756654884064,0.38775415,108840.0,108830.0,0.90008368]
[1756654884265,0.00034278,108840.0,108830.0,0.90008368]
[1756654888331,0.77516552,108840.0,108830.0,0.90016368]
[1756654888536,0.77516552,108840.0,108830.0,0.89803368]
[1756654888965,0.0002,108850.0,108840.0,0.18375597]
[1756654889164,0.38761137,108850.0,108840.0,0.33767597]
[1756654889596,0.38761137,108850.0,108840.0,0.36529297]
[1756654889805,0.38761137,108850.0,108840.0,0.40577708]
[1756654890267,0.38761137,108850.0,108840.0,0.40777708]
[1756654890674,0.38761137,108850.0,108840.0,0.40877708]
[1756654891638,0.38761137,108850.0,108840.0,0.41178708]
[1756654892047,0.51681716,108850.0,108840.0,0.41178708]
[1756654893673,0.51681716,108850.0,108840.0,0.41380708]
[1756654894094,0.51681716,108850.0,108840.0,0.43596765]
[1756654894504,0.51681716,108850.0,108840.0,0.40877708]
[1756654895004,0.51681716,108850.0,108840.0,0.40873708]
[1756654895205,0.51681716,108850.0,108840.0,0.41174708]
[1756654896021,0.51681716,108850.0,108840.0,0.43406473]
[1756654896980,0.51681716,108850.0,108840.0,0.41174708]
[1756654897302,0.0002,108850.0,108840.0,0.41376708]
[1756654897504,0.51681716,108850.0,108840.0,0.50674709]
[1756654897627,0.0002,108850.0,108840.0,0.50674709]
[1756654900627,0.0002,108850.0,108840.0,0.70674709]
[1756654900996,0.0002,108850.0,108840.0,0.50674709]
[1756654902160,0.51681716,108850.0,108840.0,0.50464709]
[1756654902573,0.51681716,108850.0,108840.0,0.50163709]
[1756654903112,0.51681716,108850.0,108840.0,0.50464709]
[1756654903517,0.51681716,108850.0,108840.0,0.50666709]
[1756654905343,0.0002,108850.0,108840.0,0.50666709]
[1756654906354,0.0002,108850.0,108840.0,0.35286709]
[1756654906563,0.0002,108850.0,108840.0,0.50678709]
[1756654907183,0.51681716,108850.0,108840.0,0.50678709]
[1756654907802,0.51681716,108850.0,108840.0,0.50620709]
[1756654908746,0.51681716,108850.0,108840.0,0.50822709]
[1756654908948,0.51681716,108850.0,108840.0,0.35286709]
[1756654909088,0.51681716,108850.0,108840.0,0.50818709]
[1756654909981,0.0002,108850.0,108840.0,0.50818709]
[1756654911250,0.0002,108850.0,108840.0,0.87020591]
[1756654919658,0.0002,108850.0,108840.0,0.71376591]
[1756654919867,0.0002,108850.0,108840.0,0.87004591]
[1756654921213,0.0002,108850.0,108840.0,0.94068591]
[1756654921631,0.0002,108850.0,108840.0,0.94056591]
[1756654928352,0.0002,108850.0,108840.0,1.32792276]
[1756654929375,0.0002,108850.0,108840.0,0.94056591]
[1756654929513,0.0002,108850.0,108840.0,1.32792276]
[1756654931628,0.0002,108850.0,108840.0,0.94056591]
[1756654931853,0.0002,108850.0,108840.0,1.32792276]
[1756654935796,0.0002,108850.0,108840.0,1.71527961]
[1756654935947,0.0002,108850.0,108840.0,1.32792276]
[1756654937910,0.0002,108850.0,108840.0,1.28743865]
[1756654938121,0.0002,108850.0,108840.0,0.9000818]
[1756654938363,0.0002,108850.0,108840.0,1.28743865]
[1756654939685,0.0002,108850.0,108840.0,1.32967772]
[1756654941364,0.0002,108850.0,108840.0,1.59717772]
[1756654943211,0.0002,108850.0,108840.0,1.59689772]
[1756654944444,0.0002,108850.0,108840.0,1.44101772]
[1756654944652,0.0002,108850.0,108840.0,1.59685772]
[1756654945261,0.0002,108850.0,108840.0,1.59681772]
[1756654947397,0.0002,108850.0,108840.0,1.20946087]
[1756654947594,0.0002,108850.0,108840.0,1.59681772]
[1756654948465,0.0002,108850.0,108840.0,1.20946087]
[1756654948667,0.0002,108850.0,108840.0,1.59681772]
[1756654954375,0.0002,108850.0,108840.0,1.98417457]
[1756654954759,0.0002,108850.0,108840.0,1.59681772]
[1756654957600,0.0002,108850.0,108840.0,1.98417457]
[1756654957769,0.0002,108850.0,108840.0,1.44101772]
[1756654957983,0.0002,108850.0,108840.0,1.59733772]
[1756654962837,0.0002,108850.0,108840.0,1.98469457]
[1756654968078,0.0002,108850.0,108840.0,1.59733772]
[1756654968822,0.0002,108850.0,108840.0,1.98469457]
[1756654970656,0.0002,108850.0,108840.0,1.20998087]
[1756654970857,0.0002,108850.0,108840.0,1.98429457]
[1756654971263,0.0002,108850.0,108840.0,1.59693772]
[1756654971909,0.0002,108850.0,108840.0,1.20958087]
[1756654972155,0.0002,108850.0,108840.0,1.59693772]
[1756654973514,0.0002,108850.0,108840.0,1.98429457]
[1756654975361,0.0002,108850.0,108840.0,1.71679457]
[1756654976827,0.0002,108850.0,108840.0,1.32943772]
[1756654977799,0.0002,108850.0,108840.0,0.94208087]
[1756654978006,0.0002,108850.0,108840.0,1.32943772]
[1756654978215,0.38755685,108870.0,108860.0,0.20466103]
[1756654978216,0.17485242,108870.0,108860.0,0.20466103]
[1756654978432,0.17489998,108870.0,108860.0,0.45328104]
[1756654978845,0.17489998,108870.0,108860.0,0.48089204]
[1756654980473,0.17489998,108870.0,108860.0,0.48081204]
[1756654981131,0.17589998,108870.0,108860.0,0.48081204]
[1756654981564,0.17589998,108870.0,108860.0,0.32525204]
[1756654981780,0.17489998,108870.0,108860.0,0.48177204]
[1756654982162,0.17589998,108870.0,108860.0,0.48177204]
[1756654982368,0.00104756,108870.0,108860.0,0.48177204]
[1756654982640,0.38840441,108870.0,108860.0,0.48177204]
[1756654983891,0.38840441,108870.0,108860.0,0.48173204]
[1756654985078,0.38840441,108870.0,108860.0,0.32625204]
[1756654985206,0.38840441,108870.0,108860.0,0.48173204]
[1756654985826,0.00104756,108870.0,108860.0,0.32625204]
[1756654986032,0.38840441,108870.0,108860.0,0.48169204]
[1756654986247,0.38840441,108870.0,108860.0,0.48485204]
[1756654988076,0.38840441,108870.0,108860.0,0.48699204]
[1756654988235,0.38840441,108870.0,108860.0,0.48485204]
[1756654988434,0.38840441,108870.0,108860.0,0.48699204]
[1756654990830,0.38840441,108870.0,108860.0,0.48153204]
[1756654991374,0.00104756,108870.0,108860.0,0.48469204]
[1756654991940,0.38840441,108870.0,108860.0,0.48469204]
[1756654993116,0.00104756,108870.0,108860.0,0.48469204]
[1756654993405,0.38840441,108870.0,108860.0,0.48469204]
[1756654993612,0.38840441,108870.0,108860.0,0.48683204]
[1756654993928,0.00104756,108870.0,108860.0,0.48683204]
[1756654996877,0.00104756,108870.0,108860.0,0.94482889]
[1756654997076,0.00104756,108870.0,108860.0,1.67218574]
[1756654997425,0.00104756,108870.0,108860.0,1.28482889]
[1756654997651,0.00104756,108870.0,108860.0,0.89747204]
[1756654997842,0.00104756,108870.0,108860.0,1.28482889]
[1756654998148,4.756e-05,108870.0,108860.0,1.28382889]
[1756654998376,4.756e-05,108870.0,108860.0,1.28682889]
[1756654998561,4.756e-05,108870.0,108860.0,1.13154889]
[1756654998765,4.756e-05,108870.0,108860.0,1.28674889]
[1756654998943,4.756e-05,108870.0,108860.0,0.89939204]
[1756654999147,0.38740441,108870.0,108860.0,0.74205204]
[1756654999350,0.38740441,108870.0,108860.0,0.89725204]
[1756654999824,4.756e-05,108870.0,108860.0,0.89825204]
[1756655002398,4.756e-05,108870.0,108860.0,1.28757889]
[1756655002552,4.756e-05,108870.0,108860.0,0.90022204]
[1756655002777,4.756e-05,108870.0,108860.0,1.28757889]
[1756655004940,4.756e-05,108870.0,108860.0,0.90022204]
[1756655005130,4.756e-05,108870.0,108860.0,1.28757889]
[1756655005932,4.756e-05,108870.0,108860.0,0.89820204]
[1756655006106,4.756e-05,108870.0,108860.0,1.28752889]
[1756655006594,4.756e-05,108870.0,108860.0,1.67488574]
[1756655007023,4.756e-05,108870.0,108860.0,0.90017204]
[1756655007252,4.756e-05,108870.0,108860.0,1.28752889]
[1756655007460,4.756e-05,108870.0,108860.0,0.90017204]
[1756655007663,4.756e-05,108870.0,108860.0,1.67488574]
[1756655007956,4.756e-05,108870.0,108860.0,1.28752889]
[1756655008469,4.756e-05,108870.0,108860.0,0.90017204]
[1756655008671,4.756e-05,108870.0,108860.0,1.28752889]
[1756655009155,4.756e-05,108870.0,108860.0,0.90017204]
[1756655009385,4.756e-05,108870.0,108860.0,1.28752889]
[1756655011180,4.756e-05,108870.0,108860.0,0.90017204]
[1756655011397,4.756e-05,108870.0,108860.0,1.28752889]
[1756655011568,4.756e-05,108870.0,108860.0,0.90017204]
[1756655011965,4.756e-05,108870.0,108860.0,1.28752889]
[1756655013279,4.756e-05,108870.0,108860.0,0.90017204]
[1756655013497,4.756e-05,108870.0,108860.0,1.13240889]
[1756655013712,4.756e-05,108870.0,108860.0,1.29024889]
[1756655015522,4.756e-05,108870.0,108860.0,1.29028889]
[1756655017332,4.756e-05,108870.0,108860.0,0.90293204]
[1756655017539,4.756e-05,108870.0,108860.0,1.29028889]
[1756655022232,4.756e-05,108870.0,108860.0,0.74505204]
[1756655022438,4.756e-05,108870.0,108860.0,1.29004889]
[1756655025113,4.756e-05,108870.0,108860.0,1.67740574]
[1756655027901,4.756e-05,108870.0,108860.0,0.90377204]
[1756655028304,4.756e-05,108870.0,108860.0,1.29112889]
[1756655028501,4.756e-05,108870.0,108860.0,1.67848574]
[1756655028703,4.756e-05,108870.0,108860.0,0.90373204]
[1756655029024,4.756e-05,108870.0,108860.0,1.29108889]
[1756655029222,4.756e-05,108870.0,108860.0,1.13240889]
[1756655029429,4.756e-05,108870.0,108860.0,0.74505204]
[1756655029629,4.756e-05,108870.0,108860.0,1.29104889]
[1756655032675,4.756e-05,108870.0,108860.0,1.29088889]
[1756655034721,4.756e-05,108870.0,108860.0,0.90353204]
[1756655034923,4.756e-05,108870.0,108860.0,1.29088889]
[1756655035533,4.756e-05,108870.0,108860.0,1.13240889]
[1756655035737,4.756e-05,108870.0,108860.0,1.29072889]
[1756655036775,4.756e-05,108870.0,108860.0,0.90337204]
[1756655036980,4.756e-05,108870.0,108860.0,1.29072889]
[1756655037581,4.756e-05,108870.0,108860.0,0.90337204]
[1756655037924,4.756e-05,108870.0,108860.0,1.29072889]
[1756655038182,4.756e-05,108870.0,108860.0,0.90325204]
[1756655038398,4.756e-05,108870.0,108860.0,1.29060889]
[1756655038696,4.756e-05,108870.0,108860.0,0.90325204]
[1756655039335,4.756e-05,108870.0,108860.0,1.29060889]
[1756655040442,4.756e-05,108870.0,108860.0,1.29056889]
[1756655040678,4.756e-05,108870.0,108860.0,1.13240889]
[1756655040880,4.756e-05,108870.0,108860.0,1.29056889]
[1756655042334,4.756e-05,108870.0,108860.0,0.90321204]
[1756655042540,4.756e-05,108870.0,108860.0,1.29056889]
[1756655045363,4.756e-05,108870.0,108860.0,0.90321204]
[1756655045558,4.756e-05,108870.0,108860.0,1.29056889]
[1756655049730,4.756e-05,108870.0,108860.0,0.90321204]
[1756655049898,4.756e-05,108870.0,108860.0,1.67792574]
[1756655050114,4.756e-05,108870.0,108860.0,0.90321204]
[1756655050268,4.756e-05,108870.0,108860.0,1.29056889]
[1756655051898,4.756e-05,108870.0,108860.0,0.90321204]
[1756655052151,4.756e-05,108870.0,108860.0,1.29056889]
[1756655053587,4.756e-05,108870.0,108860.0,0.74308204]
[1756655053742,4.756e-05,108870.0,108860.0,1.29143889]
[1756655053945,0.38740441,108870.0,108860.0,0.74508204]
[1756655054167,0.38740441,108870.0,108860.0,0.90212204]
[1756655055260,4.756e-05,108870.0,108860.0,1.29147889]
[1756655058045,4.756e-05,108870.0,108860.0,0.90412204]
[1756655058244,4.756e-05,108870.0,108860.0,1.29147889]
[1756655059114,4.756e-05,108870.0,108860.0,0.90412204]
[1756655059287,4.756e-05,108870.0,108860.0,1.29147889]
[1756655061188,4.756e-05,108870.0,108860.0,0.90412204]
[1756655061399,4.756e-05,108870.0,108860.0,1.29147889]
[1756655061574,4.756e-05,108870.0,108860.0,0.95147889]
[1756655062337,4.756e-05,108870.0,108860.0,0.56412204]
[1756655062573,4.756e-05,108870.0,108860.0,0.95147889]
[1756655065584,4.756e-05,108870.0,108860.0,0.56412204]
[1756655065770,4.756e-05,108870.0,108860.0,0.95147889]
[1756655068293,4.756e-05,108870.0,108860.0,0.40508204]
[1756655068529,0.38740441,108870.0,108860.0,0.56364204]
[1756655070781,4.756e-05,108870.0,108860.0,0.95099889]
[1756655071027,4.756e-05,108870.0,108860.0,0.95183889]
[1756655071255,4.756e-05,108870.0,108860.0,0.56448204]
[1756655071665,4.756e-05,108870.0,108860.0,0.95183889]
[1756655072094,4.756e-05,108870.0,108860.0,0.56448204]
[1756655072321,4.756e-05,108870.0,108860.0,0.95183889]
[1756655073631,4.756e-05,108870.0,108860.0,0.56448204]
[1756655074039,4.756e-05,108870.0,108860.0,0.79243889]
[1756655074169,4.756e-05,108870.0,108860.0,0.95183889]
[1756655076608,4.756e-05,108870.0,108860.0,0.56448204]
[1756655077253,4.756e-05,108870.0,108860.0,0.95183889]
[1756655078351,4.756e-05,108870.0,108860.0,0.56448204]
[1756655078635,4.756e-05,108870.0,108860.0,0.95183889]
[1756655078853,4.756e-05,108870.0,108860.0,0.56472204]
[1756655079072,4.756e-05,108870.0,108860.0,0.95207889]
[1756655079461,4.756e-05,108870.0,108860.0,0.56472204]
[1756655079668,4.756e-05,108870.0,108860.0,0.95207889]
[1756655079892,4.756e-05,108870.0,108860.0,0.56472204]
[1756655080242,4.756e-05,108870.0,108860.0,0.95207889]
[1756655081678,4.756e-05,108870.0,108860.0,0.95235889]
[1756655082369,0.18847347,108880.0,108870.0,0.18370533]
[1756655082574,0.38735685,108880.0,108870.0,0.43970534]
[1756655082783,0.38735685,108880.0,108870.0,0.27982534]
[1756655082994,0.0002,108890.0,108880.0,0.18368846]
[1756655083216,0.38990504,108890.0,108880.0,0.18368846]
[1756655083391,0.38990504,108890.0,108880.0,0.34356846]
[1756655083392,0.3876044,108890.0,108880.0,0.34356846]
[1756655083842,0.00024755,108890.0,108880.0,0.34356846]
[1756655084028,0.38990504,108890.0,108880.0,0.34356846]
[1756655084240,0.3876044,108890.0,108880.0,0.38512872]
[1756655084491,0.3876044,108890.0,108880.0,0.41273772]
[1756655085105,0.00024755,108890.0,108880.0,0.41273772]
[1756655085306,0.38990504,108890.0,108880.0,0.41273772]
[1756655085433,0.3876044,108890.0,108880.0,0.41273772]
[1756655085632,0.3886044,108890.0,108880.0,0.41273772]
[1756655087243,0.00124755,108890.0,108880.0,0.41587772]
[1756655087455,0.00124755,108890.0,108880.0,0.41785772]
[1756655088276,0.3886044,108890.0,108880.0,0.41785772]
[1756655088475,0.00124755,108890.0,108880.0,0.41785772]
[1756655088679,0.3886044,108890.0,108880.0,0.41785772]
[1756655088890,0.00124755,108890.0,108880.0,0.41785772]
[1756655089499,0.3886044,108890.0,108880.0,0.41785772]
[1756655090444,0.3885044,108890.0,108880.0,0.41785772]
[1756655091530,0.00114755,108890.0,108880.0,0.41785772]
[1756655091723,0.39080504,108890.0,108880.0,0.41785772]
[1756655091956,0.3885044,108890.0,108880.0,0.41785772]
[1756655092372,0.00114755,108890.0,108880.0,0.41785772]
[1756655092747,0.3885044,108890.0,108880.0,0.41785772]
[1756655092957,0.00114755,108890.0,108880.0,0.41785772]
[1756655093364,0.3885044,108890.0,108880.0,0.41785772]
[1756655095124,0.00114755,108890.0,108880.0,0.41785772]
[1756655095332,0.39080504,108890.0,108880.0,0.41785772]
[1756655095506,0.3885044,108890.0,108880.0,0.41785772]
[1756655098324,0.3882044,108890.0,108880.0,0.41785772]
[1756655100114,0.3882044,108890.0,108880.0,0.25599772]
[1756655100315,0.3882044,108890.0,108880.0,0.41293772]
[1756655101514,0.3882044,108890.0,108880.0,0.41608772]
[1756655101713,0.00084755,108890.0,108880.0,0.41817772]
[1756655101916,0.39050504,108890.0,108880.0,0.41608772]
[1756655102133,0.00084755,108890.0,108880.0,0.41608772]
[1756655102337,0.39050504,108890.0,108880.0,0.41608772]
[1756655102596,0.00084755,108890.0,108880.0,0.41817772]
[1756655102968,0.3882044,108890.0,108880.0,0.37761746]
[1756655103768,0.00084755,108890.0,108880.0,0.37761746]
[1756655103958,0.3882044,108890.0,108880.0,0.41874456]
[1756655104609,0.00084755,108890.0,108880.0,0.41874456]
[1756655104814,0.3882044,108890.0,108880.0,0.41874456]
[1756655105187,0.00084755,108890.0,108880.0,0.41874456]
[1756655105420,0.3882044,108890.0,108880.0,0.41874456]
[1756655105854,0.3882044,108890.0,108880.0,0.41665456]
[1756655106028,0.3882044,108890.0,108880.0,0.41874456]
[1756655106029,0.00084755,108890.0,108880.0,0.41874456]
[1756655106236,0.39050504,108890.0,108880.0,0.41874456]
[1756655106455,0.00084755,108890.0,108880.0,0.41874456]
[1756655107083,0.3882044,108890.0,108880.0,0.41874456]
[1756655107827,0.3882044,108890.0,108880.0,0.41914456]
[1756655108001,0.00084755,108890.0,108880.0,0.41914456]
[1756655108238,0.00314819,108890.0,108880.0,0.41914456]
[1756655108442,0.39050504,108890.0,108880.0,0.41914456]
[1756655108578,0.3882044,108890.0,108880.0,0.41914456]
[1756655110205,0.00084755,108890.0,108880.0,0.41914456]
[1756655110406,0.39050504,108890.0,108880.0,0.41914456]
[1756655110609,0.3882044,108890.0,108880.0,0.41914456]
[1756655111778,0.00084755,108890.0,108880.0,0.41914456]
[1756655112194,0.3882044,108890.0,108880.0,0.41914456]
[1756655112555,0.00084755,108890.0,108880.0,0.41914456]
[1756655112760,0.3882044,108890.0,108880.0,0.41914456]
[1756655113167,0.00084755,108890.0,108880.0,0.41914456]
[1756655113391,0.39050504,108890.0,108880.0,0.41914456]
[1756655113717,0.3882044,108890.0,108880.0,0.41914456]
[1756655114492,0.3882044,108890.0,108880.0,0.25866456]
[1756655114696,0.3882044,108890.0,108880.0,0.41906456]
[1756655115306,0.00084755,108890.0,108880.0,0.41906456]
[1756655115676,0.39050504,108890.0,108880.0,0.41906456]
[1756655115895,0.3882044,108890.0,108880.0,0.41906456]
[1756655116869,0.00084755,108890.0,108880.0,0.41906456]
[1756655117177,0.39050504,108890.0,108880.0,0.41906456]
[1756655117400,0.3882044,108890.0,108880.0,0.41906456]
[1756655119598,0.3882044,108890.0,108880.0,0.25866456]
[1756655119816,0.3882044,108890.0,108880.0,0.41906456]
[1756655120625,0.57187599,108890.0,108880.0,0.2302161]
[1756655120841,1.04752916,108890.0,108880.0,0.0697361]
[1756655121051,0.66879308,108890.0,108880.0,0.2303761]
[1756655121724,0.66017231,108890.0,108880.0,0.2303761]
[1756655121948,0.66017231,108890.0,108880.0,0.0697361]
[1756655122230,0.66879182,108890.0,108880.0,0.2307361]
[1756655122434,0.66017231,108890.0,108880.0,0.2307361]
[1756655122811,0.66017231,108890.0,108880.0,0.0697361]
[1756655123097,0.66017231,108890.0,108880.0,0.2307361]
[1756655123390,1.20844916,108890.0,108880.0,0.0697361]
[1756655123601,1.21706696,108890.0,108880.0,0.0421271]
[1756655123802,1.21706696,108890.0,108880.0,0.2030071]
[1756655124030,1.21706696,108890.0,108880.0,0.0421271]
[1756655124675,1.21706696,108890.0,108880.0,0.0697391]
[1756655125420,1.21706486,108890.0,108880.0,0.0697391]
[1756655125759,0.19313484,108890.0,108880.0,0.0747691]
[1756655125963,0.58049169,108890.0,108880.0,0.25635756]
[1756655126168,0.00946325,108890.0,108880.0,0.25845756]
[1756655126309,0.00314819,108890.0,108880.0,0.25845756]
[1756655126514,0.39050504,108890.0,108880.0,0.25845756]
[1756655126724,0.3882044,108890.0,108880.0,0.25845756]
[1756655127377,0.00084755,108890.0,108880.0,0.25845756]
[1756655127531,0.39050504,108890.0,108880.0,0.25845756]
[1756655127731,0.3882044,108890.0,108880.0,0.25845756]
[1756655128397,0.00084755,108890.0,108880.0,0.25845756]
[1756655128572,0.39050504,108890.0,108880.0,0.25845756]
[1756655128774,0.3882044,108890.0,108880.0,0.25845756]